bitfinex-derivatives/quotes_BTCF0:USTF0_20241110
["timestamp","ask_amount","ask_price","bid_price","bid_amount"]
[1731252869828,0.183972,79637.0,79633.0,0.00188379]
[1731252869829,0.12124,79637.0,79633.0,0.00188379]
[1731252870029,0.062733,79634.0,79633.0,0.00188379]
[1731252870422,0.062733,79634.0,79633.0,0.23188379]
[1731252870622,0.062733,79634.0,79633.0,0.29461779]
[1731252871624,0.01574723,79637.0,79636.0,0.062732]
[1731252871824,0.062725,79645.0,79642.0,0.062727]
[1731252872124,0.062726,79643.0,79642.0,0.24]
[1731252876329,0.52407066,79643.0,79642.0,0.24]
[1731252876730,0.55550646,79643.0,79633.0,0.00188379]
[1731252877034,0.50819766,79634.0,79633.0,0.2]
[1731252877225,0.50819766,79634.0,79633.0,0.15450939]
[1731252877226,0.66087346,79634.0,79633.0,0.15450939]
[1731252877926,0.062743,79623.0,79619.0,0.0314]
[1731252878127,0.3608,79622.0,79619.0,0.0314]
[1731252878329,0.423543,79622.0,79619.0,0.0314]
[1731252878529,0.3608,79622.0,79621.0,0.062744]
[1731252878725,0.3608,79622.0,79619.0,0.0314]
[1731252879027,0.12124,79623.0,79620.0,0.062744]
[1731252879421,0.12124,79623.0,79619.0,0.0314]
[1731252879732,0.062752,79610.0,79608.0,0.062754]
[1731252879934,0.062752,79610.0,79608.0,0.093254]
[1731252880327,0.062749,79615.0,79609.0,0.062753]
[1731252880632,0.3608,79620.0,79608.0,0.0305]
[1731252880633,0.3608,79620.0,79611.0,0.062751]
[1731252880823,0.062749,79615.0,79611.0,0.062751]
[1731252881024,0.3608,79620.0,79611.0,0.062751]
[1731252881225,0.062749,79615.0,79611.0,0.062751]
[1731252881424,0.3608,79620.0,79608.0,0.0305]
[1731252881733,0.062751,79612.0,79608.0,0.0305]
[1731252882039,0.01556913,79623.0,79608.0,0.0305]
[1731252882336,0.00188433,79631.0,79622.0,0.08466466]
[1731252882337,0.00108,79627.0,79622.0,0.08466466]
[1731252882637,0.00188433,79631.0,79626.0,0.08466466]
[1731252882928,0.00188433,79631.0,79630.0,0.062737]
[1731252883131,0.062725,79645.0,79630.0,0.44546466]
[1731252883333,0.062725,79645.0,79643.0,0.08466466]
[1731252883926,0.12124,79649.0,79643.0,0.08466466]
[1731252884530,0.062723,79648.0,79643.0,0.08466466]
[1731252885735,0.062723,79648.0,79645.0,0.062724]
[1731252886031,0.062731,79637.0,79632.0,0.062735]
[1731252886234,0.062733,79635.0,79632.0,0.062735]
[1731252886430,0.062735,79632.0,79627.0,0.03468372]
[1731252886933,0.3608,79629.0,79627.0,0.09742272]
[1731252887135,0.062737,79629.0,79627.0,0.09742272]
[1731252887437,0.062737,79629.0,79627.0,0.03468372]
[1731252888628,0.062733,79635.0,79627.0,0.03468372]
[1731252888833,0.062733,79635.0,79629.0,0.062737]
[1731252889032,0.3608,79636.0,79627.0,0.0328]
[1731252889231,0.062737,79630.0,79627.0,0.0328]
[1731252889423,0.062738,79629.0,79627.0,0.0328]
[1731252890130,0.37597214,79636.0,79623.0,0.062742]
[1731252890336,0.062739,79628.0,79623.0,0.062742]
[1731252890728,0.37597214,79636.0,79618.0,0.0649]
[1731252890924,0.062735,79633.0,79618.0,0.0649]
[1731252891130,0.062735,79633.0,79629.0,0.062737]
[1731252891429,0.062735,79633.0,79632.0,0.062735]
[1731252891430,0.12124,79633.0,79632.0,0.062735]
[1731252891634,0.12124,79633.0,79623.0,0.062742]
[1731252892135,0.062736,79631.0,79628.0,0.062738]
[1731252893330,0.3608,79629.0,79623.0,0.062741]
[1731252893529,0.062739,79627.0,79623.0,0.062741]
[1731252893728,0.062739,79627.0,79624.0,0.062741]
[1731252894329,0.062739,79627.0,79626.0,0.06274]
[1731252897136,0.07844574,79627.0,79626.0,0.06274]
[1731252897450,0.01570674,79627.0,79626.0,0.06274]
[1731252897642,0.062735,79632.0,79621.0,0.3608]
[1731252897837,0.062736,79631.0,79627.0,0.062738]
[1731252898136,0.14635456,79633.0,79627.0,0.062738]
[1731252898344,0.062738,79628.0,79627.0,0.062738]
[1731252900739,0.06274,79626.0,79622.0,0.062743]
[1731252900939,0.06274,79626.0,79621.0,0.3608]
[1731252901236,0.062736,79632.0,79627.0,0.062739]
[1731252901442,0.06274,79627.0,79622.0,0.062743]
[1731252901632,0.16200702,79633.0,79618.0,0.0649]
[1731252901633,0.062745,79620.0,79618.0,0.0649]
[1731252901829,0.3608,79629.0,79618.0,0.0649]
[1731252902139,0.062744,79620.0,79618.0,0.127646]
[1731252902340,0.06274,79626.0,79618.0,0.0649]
[1731252902639,0.06274,79626.0,79625.0,0.06274]
[1731252902640,0.12092,79626.0,79625.0,0.06274]
[1731252903946,0.12092,79631.0,79628.0,0.062738]
[1731252904442,0.183656,79631.0,79628.0,0.062738]
[1731252904834,0.12092,79631.0,79618.0,0.0649]
[1731252905034,0.20876956,79633.0,79630.0,0.062736]
[1731252906244,0.062736,79632.0,79630.0,0.062736]
[1731252907543,0.062736,79631.0,79630.0,0.062736]
[1731252908735,0.062738,79629.0,79625.0,0.06274]
[1731252908943,0.062738,79629.0,79622.0,0.3608]
[1731252908944,0.062738,79629.0,79626.0,0.06274]
[1731252909237,0.062738,79629.0,79622.0,0.3608]
[1731252909642,0.062738,79629.0,79628.0,0.062738]
[1731252910044,0.062738,79629.0,79622.0,0.3608]
[1731252910251,0.08478277,79626.0,79622.0,0.3608]
[1731252910549,0.08478277,79626.0,79614.0,0.36332399]
[1731252910843,0.062748,79615.0,79614.0,0.00188399]
[1731252911049,0.3608,79616.0,79614.0,0.00188399]
[1731252911253,0.12092,79621.0,79619.0,0.062745]
[1731252911644,0.12092,79621.0,79614.0,0.00188399]
[1731252911845,0.12092,79621.0,79619.0,0.062745]
[1731252912336,0.062745,79619.0,79616.0,0.062748]
[1731252912741,0.062745,79619.0,79618.0,0.062746]
[1731252913551,0.12092,79621.0,79620.0,0.062744]
[1731252913750,0.13644034,79621.0,79620.0,0.062744]
[1731252915054,0.13644034,79621.0,79614.0,0.00188399]
[1731252915354,0.062745,79620.0,79619.0,0.062745]
[1731252916248,0.13644034,79621.0,79620.0,0.062744]
[1731252917743,0.13644034,79621.0,79620.0,0.292744]
[1731252918151,0.13644034,79621.0,79620.0,0.23]
[1731252918351,0.19918434,79621.0,79620.0,0.23]
[1731252921150,0.55998434,79621.0,79620.0,0.23]
[1731252923756,0.93678434,79621.0,79620.0,0.08]
[1731252924953,0.96752349,79621.0,79620.0,0.08]
[1731252926260,0.56002434,79621.0,79620.0,0.057]
[1731252926453,0.93682434,79621.0,79620.0,0.057]
[1731252927258,0.56002434,79621.0,79620.0,0.057]
[1731252928673,0.59076269,79621.0,79620.0,0.057]
[1731252930766,0.59040269,79621.0,79620.0,0.057]
[1731252931271,0.55966434,79621.0,79620.0,0.057]
[1731252933074,0.43906434,79621.0,79620.0,0.057]
[1731252933777,0.37632034,79621.0,79620.0,0.057]
[1731252934075,0.01552034,79621.0,79620.0,0.20452677]
[1731252934376,0.12064,79629.0,79626.0,0.06274]
[1731252934672,0.48144,79629.0,79627.0,0.062739]
[1731252934871,0.48144,79629.0,79627.0,0.262739]
[1731252935173,0.48144,79629.0,79627.0,0.2]
[1731252935874,0.37604471,79629.0,79627.0,0.2]
[1731252936073,0.37604471,79629.0,79627.0,0.262739]
[1731252936662,0.01524471,79629.0,79627.0,0.262739]
[1731252936869,0.36268484,79637.0,79636.0,0.062732]
[1731252937069,0.00188484,79637.0,79636.0,0.312732]
[1731252937274,0.3618,79647.0,79638.0,0.06273]
[1731252937275,0.01589781,79639.0,79638.0,0.06273]
[1731252937466,0.183321,79650.0,79642.0,0.062727]
[1731252937667,0.423523,79648.0,79643.0,0.062726]
[1731252937875,0.423523,79648.0,79643.0,0.282726]
[1731252938179,0.062723,79647.0,79643.0,0.282726]
[1731252938375,0.08783856,79646.0,79643.0,0.282726]
[1731252939275,0.02511456,79646.0,79643.0,0.282726]
[1731252940375,0.02511456,79646.0,79643.0,0.282626]
[1731252940577,0.02511456,79646.0,79644.0,0.0324]
[1731252940877,0.01558025,79650.0,79649.0,0.062722]
[1731252941082,0.3608,79654.0,79649.0,0.22]
[1731252941374,0.3608,79654.0,79652.0,0.039718]
[1731252941568,0.3608,79654.0,79653.0,0.0308]
[1731252941771,0.3608,79654.0,79653.0,0.2608]
[1731252941972,0.3608,79654.0,79653.0,0.12]
[1731252942178,0.423518,79654.0,79653.0,0.12]
[1731252944186,0.3608,79654.0,79653.0,0.12]
[1731252944370,0.01562367,79656.0,79655.0,0.062717]
[1731252944571,0.0645884,79670.0,79655.0,0.32478277]
[1731252944778,0.0018834,79670.0,79662.0,0.08478277]
[1731252944970,0.0018834,79670.0,79669.0,0.08478277]
[1731252945171,0.3608,79680.0,79669.0,0.67558277]
[1731252945172,0.01565586,79676.0,79669.0,0.67558277]
[1731252945386,0.1206,79683.0,79678.0,0.062698]
[1731252945581,0.3608,79680.0,79678.0,0.302698]
[1731252945777,0.3608,79680.0,79679.0,0.0314]
[1731252945975,0.3608,79680.0,79679.0,0.2514]
[1731252946679,0.02511006,79681.0,79679.0,0.2514]
[1731252946881,0.44558277,79680.0,79679.0,0.2514]
[1731252947276,0.3608,79680.0,79679.0,0.2514]
[1731252947677,0.08478277,79680.0,79679.0,0.2831]
[1731252947880,0.08478277,79680.0,79679.0,0.22]
[1731252948380,0.062697,79681.0,79679.0,0.22]
[1731252948779,0.08478277,79680.0,79679.0,0.22]
[1731252955492,0.08478277,79680.0,79679.0,0.12236819]
[1731252956288,0.08478277,79680.0,79679.0,0.09936819]
[1731252960981,0.062697,79681.0,79679.0,0.09936819]
[1731252961293,0.1202,79680.0,79679.0,0.09936819]
[1731252961987,0.062697,79681.0,79679.0,0.09936819]
[1731252962393,0.482,79682.0,79680.0,0.03]
[1731252962597,0.481,79682.0,79680.0,0.292697]
[1731252962994,0.3608,79682.0,79681.0,0.062696]
[1731252963297,0.3608,79682.0,79681.0,0.324896]
[1731252963889,0.3608,79682.0,79681.0,0.2622]
[1731252964196,0.423496,79682.0,79681.0,0.23]
[1731252965185,0.50827877,79682.0,79681.0,0.23]
[1731252965389,0.45643011,79682.0,79681.0,0.23]
[1731252967291,0.45654422,79682.0,79681.0,0.23]
[1731252967697,0.423496,79682.0,79681.0,0.23]
[1731252967899,0.45654124,79682.0,79681.0,0.23]
[1731252968897,0.45635327,79682.0,79681.0,0.23]
[1731252969399,0.423496,79682.0,79681.0,0.23]
[1731252969600,0.45655137,79682.0,79681.0,0.23]
[1731252969996,0.57675137,79682.0,79681.0,0.23]
[1731252970696,0.57675137,79682.0,79678.0,0.062705]
[1731252970895,0.03305537,79681.0,79678.0,0.062705]
[1731252971298,0.09575837,79681.0,79678.0,0.039705]
[1731252971497,0.03305537,79680.0,79678.0,0.039705]
[1731252971692,0.03305537,79679.0,79678.0,0.039705]
[1731252972095,0.1202,79679.0,79678.0,0.039705]
[1731252973295,0.1202,79679.0,79673.0,0.062709]
[1731252973496,0.3608,79674.0,79673.0,0.062709]
[1731252974998,0.3109,79674.0,79673.0,0.062709]
[1731252976902,0.062704,79679.0,79669.0,0.0325]
[1731252977204,0.03300093,79678.0,79674.0,0.062708]
[1731252977392,0.03300093,79677.0,79674.0,0.062708]
[1731252978099,0.03300093,79677.0,79669.0,0.0325]
[1731252978100,0.062705,79678.0,79669.0,0.0325]
[1731252979200,0.062705,79678.0,79674.0,0.062707]
[1731252980098,0.3608,79682.0,79674.0,0.062707]
[1731252980299,0.062711,79670.0,79669.0,0.0325]
[1731252980805,0.062714,79667.0,79666.0,0.0311]
[1731252981012,0.062716,79664.0,79663.0,0.00188304]
[1731252981199,0.18000728,79664.0,79663.0,0.00188304]
[1731252981599,0.09522451,79664.0,79663.0,0.00188304]
[1731252981801,0.062716,79664.0,79663.0,0.00188304]
[1731252982403,0.062725,79653.0,79652.0,0.0324]
[1731252982612,0.423525,79653.0,79652.0,0.0324]
[1731252982902,0.784325,79653.0,79652.0,0.0324]
[1731252983413,0.784325,79653.0,79651.0,0.0302]
[1731252983901,0.784325,79653.0,79647.0,0.00124]
[1731252983902,0.062729,79648.0,79647.0,0.00124]
[1731252984099,0.17824139,79648.0,79647.0,0.00124]
[1731252984304,0.14751177,79648.0,79647.0,0.00124]
[1731252984898,0.17824241,79648.0,79647.0,0.00124]
[1731252985100,0.17824241,79648.0,79636.0,0.00188343]
[1731252985101,0.14751977,79637.0,79636.0,0.00188343]
[1731252985297,0.98931977,79637.0,79636.0,0.00188343]
[1731252985909,0.98931977,79637.0,79623.0,0.0633]
[1731252985910,0.06274,79634.0,79623.0,0.0633]
[1731252986104,0.18294,79634.0,79623.0,0.0633]
[1731252986306,0.1202,79634.0,79623.0,0.06329999]
[1731252986505,0.3608,79624.0,79623.0,0.06329999]
[1731252987208,0.36091502,79624.0,79623.0,0.06329999]
[1731252988414,0.37943169,79624.0,79623.0,0.06329999]
[1731252989112,0.36091502,79624.0,79623.0,0.44005999]
[1731252989316,0.36091502,79624.0,79623.0,0.52484276]
[1731252989910,0.00011502,79624.0,79623.0,0.06329999]
[1731252990211,0.00011502,79624.0,79623.0,0.03249999]
[1731252991707,0.00011502,79624.0,79614.0,0.062755]
[1731252991708,0.06275,79621.0,79614.0,0.062755]
[1731252991910,0.06275,79621.0,79613.0,0.0328]
[1731252991911,0.3608,79618.0,79613.0,0.0328]
[1731252992109,0.3608,79618.0,79616.0,0.062754]
[1731252992110,0.48072,79618.0,79616.0,0.062754]
[1731252993812,0.48072,79618.0,79613.0,0.0328]
[1731252993813,0.062753,79617.0,79613.0,0.0328]
[1731252994514,0.062753,79617.0,79613.0,0.095556]
[1731252995412,0.062754,79616.0,79613.0,0.0328]
[1731252995613,0.062755,79615.0,79613.0,0.0328]
[1731252995915,0.48072,79618.0,79604.0,0.0304]
[1731252995916,0.48172,79618.0,79604.0,0.0304]
[1731252996109,0.3608,79605.0,79604.0,0.0304]
[1731252996312,0.3608,79605.0,79604.0,0.092763]
[1731252996914,0.3608,79605.0,79604.0,0.03]
[1731252997117,0.31055695,79605.0,79604.0,0.03]
[1731252997614,0.36188,79618.0,79611.0,0.062757]
[1731252997822,0.36188,79618.0,79604.0,0.03]
[1731252997823,0.062754,79616.0,79604.0,0.03]
[1731252998113,0.062754,79616.0,79609.0,0.062759]
[1731252998313,0.062754,79616.0,79604.0,0.03]
[1731252998314,0.062754,79616.0,79610.0,0.062758]
[1731252999213,0.062755,79615.0,79610.0,0.062758]
[1731253000520,0.37944465,79618.0,79617.0,0.062753]
[1731253000820,0.49940465,79618.0,79617.0,0.062753]
[1731253001315,0.49940465,79618.0,79612.0,0.062757]
[1731253001522,0.062753,79617.0,79607.0,0.08478277]
[1731253001719,0.062756,79614.0,79604.0,0.03]
[1731253001921,0.062756,79614.0,79610.0,0.062758]
[1731253002424,0.062756,79614.0,79611.0,0.062758]
[1731253002807,0.50048465,79618.0,79610.0,0.05024494]
[1731253002808,0.062758,79611.0,79610.0,0.05024494]
[1731253003013,0.423558,79611.0,79610.0,0.05024494]
[1731253003212,0.3608,79611.0,79610.0,0.11300394]
[1731253003610,0.062754,79616.0,79613.0,0.062756]
[1731253004621,0.50040465,79618.0,79613.0,0.062756]
[1731253004832,0.062755,79615.0,79613.0,0.062756]
[1731253006820,0.062755,79614.0,79613.0,0.062756]
[1731253007410,0.50040465,79618.0,79610.0,0.05024494]
[1731253007615,0.49940465,79618.0,79610.0,0.05024494]
[1731253007821,0.49940465,79618.0,79611.0,0.062758]
[1731253008022,0.56215665,79618.0,79613.0,0.062756]
[1731253008515,0.062753,79617.0,79613.0,0.062756]
[1731253009616,0.50044466,79618.0,79610.0,0.05024494]
[1731253009818,0.49940465,79618.0,79610.0,0.05024494]
[1731253010121,0.49940465,79618.0,79617.0,0.062753]
[1731253011022,0.37944465,79618.0,79617.0,0.062753]
[1731253011610,0.44219665,79618.0,79617.0,0.062753]
[1731253012509,0.44219665,79618.0,79617.0,0.11299352]
[1731253015419,0.44215665,79618.0,79617.0,0.11299352]
[1731253016228,0.44215665,79618.0,79617.0,0.08999352]
[1731253017714,0.37940465,79618.0,79617.0,0.08999352]
[1731253018320,0.37940465,79618.0,79617.0,0.17480522]
[1731253018321,0.3608,79618.0,79617.0,0.17480522]
[1731253018521,0.3608,79627.0,79617.0,0.55160522]
[1731253018731,0.3608,79627.0,79623.0,0.1475597]
[1731253018922,0.01311378,79713.0,79623.0,0.1475597]
[1731253018923,0.423538,79636.0,79623.0,0.5083597]
[1731253019230,0.3608,79644.0,79632.0,0.062741]
[1731253019420,0.3608,79644.0,79632.0,0.5931644]
[1731253019620,0.3608,79644.0,79643.0,0.062733]
[1731253020022,0.01829305,79646.0,79643.0,0.3608]
[1731253020229,0.01829305,79646.0,79645.0,0.062731]
[1731253020422,0.02512352,79656.0,79643.0,0.39402]
[1731253020727,0.02512352,79656.0,79655.0,0.062723]
[1731253022723,0.02512352,79656.0,79648.0,0.062728]
[1731253022929,0.3608,79652.0,79643.0,0.3933]
[1731253023233,0.4456117,79644.0,79640.0,0.062734]
[1731253023620,0.062735,79641.0,79639.0,0.062736]
[1731253025827,0.36721207,79652.0,79639.0,0.0848117]
[1731253025828,0.3608,79652.0,79639.0,0.0848117]
[1731253026028,0.00094,79658.0,79657.0,0.062722]
[1731253026231,0.00094,79658.0,79657.0,0.1475337]
[1731253026427,0.00094,79658.0,79657.0,0.5241337]
[1731253027719,0.00094,79658.0,79657.0,0.439322]
[1731253028747,0.37971485,79674.0,79672.0,0.06271]
[1731253029134,0.3608,79674.0,79672.0,0.06271]
[1731253029326,0.3608,79684.0,79679.0,0.062704]
[1731253029327,0.11964,79681.0,79679.0,0.062704]
[1731253029833,0.182343,79681.0,79679.0,0.062704]
[1731253030029,0.182343,79681.0,79667.0,0.0848117]
[1731253030030,0.11964,79681.0,79667.0,0.0848117]
[1731253030236,0.4456117,79668.0,79662.0,0.3608]
[1731253030431,0.3608,79663.0,79662.0,0.00064]
[1731253030733,0.3608,79663.0,79661.0,0.062718]
[1731253032623,0.3608,79663.0,79662.0,0.3766]
[1731253033027,0.3608,79663.0,79662.0,0.439318]
[1731253034222,0.3608,79671.0,79670.0,0.062711]
[1731253034426,0.3608,79685.0,79683.0,0.062701]
[1731253034629,0.423493,79693.0,79683.0,0.1475127]
[1731253035424,0.4456117,79693.0,79683.0,0.062701]
[1731253035633,0.062697,79688.0,79683.0,0.062701]
[1731253035838,0.4456117,79693.0,79689.0,0.062696]
[1731253036138,0.3608,79693.0,79689.0,0.062696]
[1731253036333,0.3608,79693.0,79691.0,0.062695]
[1731253036730,0.3608,79693.0,79692.0,0.062694]
[1731253036937,0.3608,79693.0,79692.0,0.18967159]
[1731253037541,0.3608,79693.0,79692.0,0.062694]
[1731253041439,0.062689,79699.0,79686.0,0.05089717]
[1731253041633,0.3608,79698.0,79695.0,0.062692]
[1731253042439,0.3608,79698.0,79690.0,0.062695]
[1731253042644,0.062693,79693.0,79690.0,0.062695]
[1731253042845,0.062694,79692.0,79690.0,0.062695]
[1731253043245,0.062694,79692.0,79685.0,0.36144]
[1731253043246,0.062698,79687.0,79685.0,0.00064]
[1731253043452,0.0627,79684.0,79676.0,0.062706]
[1731253043760,0.0627,79684.0,79676.0,0.06240601]
[1731253043761,0.3608,79680.0,79676.0,0.06240601]
[1731253044245,0.3608,79680.0,79675.0,0.00188248]
[1731253044846,0.3608,79680.0,79673.0,0.01854135]
[1731253045047,0.3608,79695.0,79684.0,0.0627]
[1731253045240,0.062691,79696.0,79691.0,0.062694]
[1731253045543,0.062696,79690.0,79684.0,0.0627]
[1731253045744,0.062697,79689.0,79684.0,0.0627]
[1731253046950,0.062701,79683.0,79676.0,0.062706]
[1731253047449,0.062701,79683.0,79672.0,0.11956]
[1731253047450,0.062701,79683.0,79677.0,0.062706]
[1731253047646,0.3608,79685.0,79677.0,0.062706]
[1731253047949,0.3608,79678.0,79672.0,0.062709]
[1731253048250,0.3608,79678.0,79671.0,0.0312]
[1731253048549,0.062709,79673.0,79671.0,0.0312]
[1731253049053,0.062709,79673.0,79665.0,0.0304]
[1731253049548,0.0302,79677.0,79671.0,0.06271]
[1731253050550,0.0302,79677.0,79665.0,0.0304]
[1731253050750,0.3608,79678.0,79670.0,0.12697759]
[1731253051147,0.3608,79678.0,79677.0,0.062706]
[1731253052748,0.3608,79685.0,79677.0,0.12697759]
[1731253052949,0.3608,79685.0,79684.0,0.0627]
[1731253053154,0.1,79700.0,79698.0,0.062689]
[1731253053658,0.1,79700.0,79698.0,0.192689]
[1731253053843,0.1,79700.0,79698.0,0.31966659]
[1731253054043,0.1,79700.0,79698.0,0.52966659]
[1731253055052,0.1,79700.0,79698.0,0.46697759]
[1731253055250,0.1,79700.0,79699.0,0.062688]
[1731253055455,0.1,79700.0,79699.0,0.432688]
[1731253058771,0.1,79700.0,79699.0,0.51731514]
[1731253059948,0.1,79700.0,79699.0,0.432688]
[1731253060349,0.1,79700.0,79699.0,0.432488]
[1731253061553,0.1,79700.0,79699.0,0.409488]
[1731253062250,0.10129883,79700.0,79699.0,0.409488]
[1731253062851,0.10129883,79700.0,79699.0,0.440788]
[1731253063254,0.10129883,79700.0,79699.0,0.49097683]
[1731253073067,0.10129883,79700.0,79699.0,0.57560397]
[1731253073467,0.10129883,79700.0,79699.0,0.49097683]
[1731253076663,0.10129883,79700.0,79699.0,0.45148883]
[1731253076861,0.10129883,79700.0,79699.0,0.51417683]
[1731253078170,0.60941397,79700.0,79699.0,0.42018883]
[1731253078567,1.13894379,79700.0,79699.0,0.37028883]
[1731253078768,1.13894379,79700.0,79691.0,0.19]
[1731253078769,0.062694,79692.0,79691.0,0.19]
[1731253078965,0.423494,79692.0,79691.0,0.34]
[1731253079364,0.42479283,79692.0,79691.0,0.34]
[1731253080377,0.54272464,79692.0,79691.0,0.34]
[1731253080572,0.66184464,79692.0,79691.0,0.34]
[1731253080770,0.62853997,79692.0,79691.0,0.34]
[1731253081873,0.70026652,79692.0,79691.0,0.25371208]
[1731253082563,0.67982077,79692.0,79691.0,0.25371208]
[1731253082879,0.71831754,79692.0,79691.0,0.25371208]
[1731253083469,0.67982077,79692.0,79691.0,0.25371208]
[1731253083872,0.59519363,79692.0,79691.0,0.25371208]
[1731253085677,0.59519363,79692.0,79691.0,0.31640708]
[1731253085678,0.44284327,79692.0,79691.0,0.31640708]
[1731253086377,0.44284327,79692.0,79691.0,0.40103422]
[1731253086763,0.44284327,79692.0,79691.0,0.43143422]
[1731253087373,0.44284327,79692.0,79691.0,0.34680708]
[1731253090574,0.44284327,79692.0,79691.0,0.28411208]
[1731253091677,0.44284327,79692.0,79691.0,0.3904]
[1731253093676,0.44284327,79692.0,79691.0,0.453095]
[1731253094279,0.38014927,79692.0,79691.0,0.53772214]
[1731253095870,0.44284327,79692.0,79691.0,0.453095]
[1731253097584,0.44284327,79692.0,79691.0,0.3904]
[1731253101386,0.47618961,79692.0,79691.0,0.3904]
[1731253101681,0.44284327,79692.0,79691.0,0.3904]
[1731253101875,0.4762122,79692.0,79691.0,0.3904]
[1731253102282,0.97177116,79692.0,79691.0,0.36]
[1731253102781,0.59533116,79692.0,79691.0,0.36]
[1731253103181,0.56196327,79692.0,79691.0,0.36]
[1731253103682,0.5953678,79692.0,79691.0,0.36]
[1731253103875,0.5953678,79692.0,79691.0,0.393]
[1731253105175,0.44284327,79692.0,79691.0,0.393]
[1731253105382,0.38014927,79692.0,79691.0,0.393]
[1731253106582,0.38014927,79692.0,79691.0,0.37]
[1731253106887,0.38014927,79692.0,79691.0,0.432695]
[1731253109187,0.38014927,79692.0,79691.0,0.399695]
[1731253109386,0.062707,79676.0,79675.0,0.04252253]
[1731253109588,0.542507,79676.0,79675.0,0.36188253]
[1731253110088,0.4798,79676.0,79675.0,0.36188253]
[1731253110279,0.36209883,79676.0,79675.0,0.36188253]
[1731253110483,0.119,79681.0,79676.0,0.062707]
[1731253110690,0.119,79681.0,79677.0,0.095505]
[1731253110992,0.119,79681.0,79677.0,0.435505]
[1731253112589,0.13779401,79681.0,79677.0,0.435505]
[1731253113578,0.13779401,79681.0,79678.0,0.0305]
[1731253113784,0.062704,79680.0,79678.0,0.4021]
[1731253114490,0.01879401,79681.0,79678.0,0.4021]
[1731253114684,0.4798,79699.0,79680.0,0.08462714]
[1731253114883,0.119,79704.0,79699.0,0.062688]
[1731253115089,0.1,79700.0,79699.0,0.49731514]
[1731253115292,0.0002,79700.0,79699.0,0.49731514]
[1731253115486,0.00188253,79708.0,79707.0,0.062682]
[1731253115681,0.00188253,79708.0,79707.0,0.88810914]
[1731253115894,0.00188253,79708.0,79707.0,0.442682]
[1731253116794,0.00188253,79708.0,79707.0,0.38]
[1731253116998,0.36268253,79708.0,79707.0,0.38]
[1731253118989,0.36268253,79708.0,79707.0,0.2]
[1731253118990,0.39668664,79708.0,79707.0,0.2]
[1731253119787,0.81153339,79708.0,79694.0,0.0317]
[1731253119993,0.81153339,79708.0,79694.0,0.3617]
[1731253119994,0.3608,79695.0,79694.0,0.3617]
[1731253120190,0.423492,79695.0,79694.0,0.33]
[1731253120396,0.423492,79695.0,79694.0,0.2]
[1731253120597,1.21227367,79695.0,79694.0,0.2]
[1731253120891,1.51168989,79695.0,79676.0,0.00064]
[1731253121097,0.423504,79679.0,79678.0,0.23]
[1731253121286,0.542464,79679.0,79678.0,0.23]
[1731253121486,0.542464,79679.0,79678.0,0.207]
[1731253122798,0.903264,79679.0,79678.0,0.207]
[1731253122981,0.903264,79679.0,79678.0,0.18155058]
[1731253123997,0.92158307,79679.0,79678.0,0.18155058]
[1731253124293,1.00621021,79679.0,79678.0,0.18155058]
[1731253124687,1.00621021,79679.0,79678.0,0.08]
[1731253125886,0.00012666,79678.0,79639.0,0.05022664]
[1731253126088,0.08462714,79649.0,79647.0,0.0267]
[1731253126397,0.119,79650.0,79647.0,0.3867]
[1731253126701,0.06879794,79650.0,79647.0,0.3867]
[1731253127099,0.06879794,79650.0,79648.0,0.062728]
[1731253127303,0.06879794,79650.0,79648.0,0.442728]
[1731253127801,0.06879794,79650.0,79648.0,0.38]
[1731253129505,0.062728,79649.0,79648.0,0.38]
[1731253131303,0.1378715,79651.0,79648.0,0.38]
[1731253131502,0.3608,79649.0,79648.0,0.38]
[1731253131698,0.119,79651.0,79648.0,0.38]
[1731253132093,0.01850557,79654.0,79648.0,0.442728]
[1731253132396,0.062723,79656.0,79648.0,0.52735514]
[1731253133099,0.062723,79656.0,79650.0,0.062727]
[1731253133400,0.062723,79656.0,79650.0,0.432727]
[1731253133902,0.3608,79658.0,79656.0,0.062722]
[1731253134097,0.3608,79658.0,79656.0,0.412722]
[1731253134408,0.062718,79662.0,79656.0,0.35]
[1731253134599,0.062718,79662.0,79658.0,0.062721]
[1731253134903,0.062718,79662.0,79658.0,0.422721]
[1731253135108,0.062719,79661.0,79658.0,0.422721]
[1731253136996,0.062719,79661.0,79658.0,0.36]
[1731253137197,0.37942704,79665.0,79659.0,0.03972]
[1731253137397,0.37942704,79665.0,79659.0,0.38972]
[1731253138299,0.37942704,79665.0,79659.0,0.35]
[1731253138501,0.06271,79672.0,79668.0,0.062712]
[1731253138802,0.06271,79672.0,79669.0,0.0317]
[1731253138998,0.10671698,79672.0,79669.0,0.3817]
[1731253139401,0.04400698,79672.0,79669.0,0.3817]
[1731253139606,0.062711,79671.0,79669.0,0.3817]
[1731253140001,0.14733814,79671.0,79669.0,0.3817]
[1731253143316,0.062711,79671.0,79669.0,0.3817]
[1731253143505,0.02511012,79672.0,79670.0,0.062711]
[1731253143813,0.02511012,79672.0,79670.0,0.442711]
[1731253144112,0.3608,79671.0,79670.0,0.442711]
[1731253146212,0.08782012,79672.0,79670.0,0.38]
[1731253146407,0.08782012,79672.0,79671.0,0.062711]
[1731253146710,0.08782012,79672.0,79671.0,0.402711]
[1731253149207,0.02061565,79677.0,79673.0,0.062709]
[1731253149208,0.062707,79676.0,79673.0,0.062709]
[1731253149408,0.00188331,79677.0,79676.0,0.062707]
[1731253149611,0.00188331,79677.0,79676.0,0.52733414]
[1731253149816,0.00188331,79677.0,79676.0,0.442707]
[1731253150012,0.11892,79687.0,79676.0,0.442707]
[1731253150013,0.001,79710.0,79676.0,1.09357428]
[1731253150314,0.3608,79720.0,79704.0,0.062685]
[1731253150506,0.3608,79720.0,79704.0,0.6908]